bitfinex/quotes_BTCUSD_20251217
["timestamp","ask_amount","ask_price","bid_price","bid_amount"]
[1765960854833,0.01154787,86596.0,86590.0,0.01154867]
[1765960854983,0.01318,86591.0,86585.0,0.01154934]
[1765960855184,0.01154961,86583.0,86578.0,0.01044]
[1765960855394,0.01154974,86582.0,86578.0,0.02199027]
[1765960855609,0.01154974,86582.0,86576.0,0.01155054]
[1765960855610,0.01162372,86582.0,86576.0,0.01155054]
[1765960856242,7.398e-05,86582.0,86580.0,0.23100023]
[1765960857546,7.398e-05,86582.0,86581.0,0.01733]
[1765960857744,7.398e-05,86582.0,86581.0,0.13627682]
[1765960858944,7.398e-05,86582.0,86581.0,0.13727682]
[1765960859145,7.398e-05,86582.0,86581.0,0.13927682]
[1765960862775,7.398e-05,86582.0,86581.0,0.15313667]
[1765960862910,7.398e-05,86582.0,86581.0,0.20761521]
[1765960867331,7.398e-05,86582.0,86581.0,0.66157506]
[1765960867493,7.398e-05,86582.0,86581.0,0.49831521]
[1765960868297,7.398e-05,86582.0,86581.0,0.47999521]
[1765960868501,7.398e-05,86582.0,86581.0,0.49831521]
[1765960876240,0.00964063,86605.0,86602.0,0.01154707]
[1765960876549,8.277e-05,86605.0,86603.0,0.01154694]
[1765960877692,0.00108277,86605.0,86603.0,0.01154694]
[1765960878310,0.01362944,86605.0,86601.0,0.01154721]
[1765960878510,0.00308277,86605.0,86604.0,0.23093621]
[1765960878799,0.00308277,86605.0,86602.0,0.24248861]
[1765960878950,0.00308277,86605.0,86603.0,0.23093707]
[1765960879371,0.00208277,86605.0,86603.0,0.23093707]
[1765960879568,0.00208277,86605.0,86602.0,0.24248861]
[1765960879569,8.277e-05,86605.0,86602.0,0.24248861]
[1765960879803,0.00108277,86605.0,86604.0,0.23093621]
[1765960879964,0.00108277,86605.0,86602.0,0.01154707]
[1765960880537,0.00108277,86605.0,86600.0,0.01154734]
[1765960880786,0.01154694,86603.0,86599.0,0.01154747]
[1765960880985,0.01154707,86602.0,86599.0,0.01154747]
[1765960882169,0.001,86602.0,86599.0,0.24249466]
[1765960882366,0.001,86602.0,86600.0,0.23094508]
[1765960882367,0.002,86602.0,86600.0,0.23094508]
[1765960883188,0.001,86602.0,86600.0,0.23094508]
[1765960883970,0.01282,86604.0,86603.0,0.23093888]
[1765960884459,8.277e-05,86605.0,86603.0,0.23093888]
[1765960884961,8.277e-05,86605.0,86604.0,0.04079]
[1765960886356,0.00108277,86605.0,86603.0,0.23093888]
[1765960887647,8.277e-05,86605.0,86603.0,0.23093888]
[1765960887849,0.00108277,86605.0,86603.0,0.23093888]
[1765960888076,0.00208277,86605.0,86603.0,0.23093888]
[1765960889210,0.09690191,86612.0,86607.0,0.24247413]
[1765960889416,0.09690191,86612.0,86607.0,0.24258748]
[1765960889576,0.01154587,86611.0,86608.0,0.01154627]
[1765960889779,0.01154574,86612.0,86609.0,0.01154614]
[1765960890273,0.01154574,86612.0,86608.0,0.24246956]
[1765960890440,0.03794561,86613.0,86610.0,0.01154601]
[1765960890652,0.002,86611.0,86610.0,0.24246454]
[1765960890897,0.002,86612.0,86610.0,0.24246454]
[1765960891733,0.01282,86615.0,86610.0,0.01154601]
[1765960891935,0.002,86611.0,86610.0,0.01154601]
[1765960892284,0.01154561,86613.0,86609.0,0.24246731]
[1765960892492,0.002,86612.0,86609.0,0.24246731]
[1765960893555,0.002,86612.0,86607.0,0.00011335]
[1765960893556,0.23092197,86610.0,86607.0,0.00011335]
[1765960893751,0.03794601,86610.0,86607.0,0.01165976]
[1765960895934,0.0264,86610.0,86607.0,0.24258621]
[1765960896166,0.24246512,86611.0,86608.0,0.01154627]
[1765960896662,0.24246512,86611.0,86607.0,0.01165976]
[1765960896663,0.01154601,86610.0,86607.0,0.01165976]
[1765960897081,0.01154587,86611.0,86608.0,0.01154627]
[1765960897461,0.01154574,86612.0,86609.0,0.01154614]
[1765960897671,0.01154587,86611.0,86608.0,0.01154627]
[1765960897880,0.03839587,86611.0,86608.0,0.01154627]
[1765960898086,0.03839587,86611.0,86608.0,0.24247029]
[1765960898767,0.03839587,86611.0,86608.0,0.01154627]
[1765960899476,0.24245043,86616.0,86612.0,0.01154574]
[1765960899680,0.24245043,86616.0,86612.0,0.2424597]
[1765960899681,0.01154521,86616.0,86612.0,0.2424597]
[1765960899880,0.24244389,86618.0,86613.0,0.24245579]
[1765960900101,0.01154494,86618.0,86615.0,0.01154534]
[1765960900783,0.001,86616.0,86615.0,0.01154534]
[1765960901217,0.02436481,86619.0,86616.0,0.01154521]
[1765960901572,0.25526263,86619.0,86615.0,0.01154534]
[1765960901822,0.24244607,86618.0,86614.0,0.24245348]
[1765960902324,0.25526263,86619.0,86615.0,0.01154534]
[1765960902607,0.01154521,86616.0,86613.0,0.01154561]
[1765960903063,0.01154494,86618.0,86614.0,0.01154547]
[1765960903503,0.01154494,86618.0,86602.0,0.01154707]
[1765960903504,0.04398,86608.0,86602.0,0.01154707]
[1765960903709,0.04398,86608.0,86596.0,0.01154787]
[1765960904621,0.04398,86608.0,86598.0,0.01154761]
[1765960905020,0.04398,86608.0,86599.0,0.01154747]
[1765960905332,0.04398,86608.0,86598.0,0.01154761]
[1765960905539,0.04398,86608.0,86599.0,0.01154747]
[1765960905743,0.23092339,86609.0,86599.0,0.01154747]
[1765960905945,0.23092339,86609.0,86601.0,0.01154721]
[1765960906121,0.25777339,86609.0,86602.0,0.01154707]
[1765960906325,0.25777339,86609.0,86604.0,0.01154681]
[1765960906487,0.01154547,86614.0,86611.0,0.01154587]
[1765960906693,0.33058,86615.0,86610.0,0.01154601]
[1765960906892,0.02685,86614.0,86610.0,0.01154601]
[1765960907099,0.01154561,86613.0,86607.0,0.24258722]
[1765960907338,0.01154574,86612.0,86609.0,0.01154614]
[1765960907539,0.03839574,86612.0,86609.0,0.01154614]
[1765960907750,0.03839587,86611.0,86607.0,0.24258722]
[1765960908148,0.03839587,86611.0,86608.0,0.01154627]
[1765960908380,0.02685,86611.0,86609.0,0.23092288]
[1765960908731,0.03839587,86611.0,86608.0,0.01154627]
[1765960908931,0.23092455,86609.0,86607.0,0.00011335]
[1765960909287,0.01713,86608.0,86607.0,0.00011335]
[1765960909489,0.04398,86608.0,86607.0,0.00011335]
[1765960910483,0.13616395,86608.0,86607.0,0.00011335]
[1765960910691,0.42686395,86608.0,86607.0,0.00011335]
[1765960910870,0.99983295,86608.0,86607.0,0.00011335]
[1765960912148,1.00083295,86608.0,86607.0,0.00011335]
[1765960912981,1.00183295,86608.0,86607.0,0.00011335]
[1765960913766,0.94130195,86608.0,86607.0,0.00011335]
[1765960913975,0.54746295,86608.0,86607.0,0.00011335]
[1765960914972,0.53416295,86608.0,86607.0,0.00011335]
[1765960915178,0.455279,86608.0,86607.0,0.00011335]
[1765960915418,0.473559,86608.0,86607.0,0.00011335]
[1765960916247,0.472559,86608.0,86607.0,0.00011335]
[1765960916453,0.471559,86608.0,86607.0,0.00011335]
[1765960916632,0.472559,86608.0,86607.0,0.00011335]
[1765960916872,0.473559,86608.0,86607.0,0.00011335]
[1765960919211,0.35496,86608.0,86607.0,0.00011335]
[1765960919729,0.460249,86608.0,86607.0,0.00011335]
[1765960919930,0.35496,86608.0,86607.0,0.00011335]
[1765960920868,0.002,86608.0,86607.0,0.01787335]
[1765960921085,0.001,86608.0,86607.0,0.1338873]
[1765960921291,0.001,86608.0,86607.0,0.13550017]
[1765960921689,0.001,86608.0,86607.0,0.11167017]
[1765960921899,0.01154507,86617.0,86613.0,0.01154561]
[1765960922723,0.01154507,86617.0,86614.0,0.01154547]
[1765960922959,0.01154494,86618.0,86615.0,0.01154534]
[1765960924606,0.02436481,86619.0,86614.0,0.01154547]
[1765960924814,0.23090375,86617.0,86612.0,0.01154574]
[1765960925222,0.01154534,86615.0,86610.0,0.2424662]
[1765960925456,0.23089925,86618.0,86612.0,0.23091488]
[1765960925664,0.25719925,86618.0,86613.0,0.23091003]
[1765960925835,0.24244889,86617.0,86613.0,0.01154561]
[1765960926034,0.24245375,86615.0,86611.0,0.01154587]
[1765960926241,0.24245375,86615.0,86610.0,0.01154601]
[1765960926242,0.24245756,86614.0,86610.0,0.01154601]
[1765960926417,0.24245756,86614.0,86607.0,0.23265344]
[1765960926418,0.0429,86608.0,86607.0,0.00011335]
[1765960928324,0.0429,86608.0,86607.0,0.00111335]
[1765960933871,0.3336,86608.0,86607.0,0.00111335]
[1765960935870,0.3346,86608.0,86607.0,0.00111335]
[1765960936091,0.3346,86608.0,86607.0,0.00011335]
[1765960936583,0.3356,86608.0,86607.0,0.00011335]
[1765960951505,1.798349,86608.0,86607.0,0.00011335]
[1765960951754,1.700535,86608.0,86607.0,0.00011335]
[1765960951986,0.968037,86608.0,86607.0,0.00011335]
[1765960952762,0.689513,86608.0,86607.0,0.00011335]
[1765960953164,0.464609,86608.0,86607.0,0.00011335]
[1765960954557,0.458609,86608.0,86607.0,0.00011335]
[1765960955164,0.34788,86608.0,86607.0,0.00011335]
[1765960955372,0.576783,86608.0,86607.0,0.00011335]
[1765960957554,0.576783,86608.0,86607.0,3.35e-06]
[1765960988968,0.01835,86608.0,86607.0,3.35e-06]
[1765960989180,0.04193,86608.0,86607.0,3.35e-06]
[1765960989951,0.04093,86608.0,86607.0,3.35e-06]
[1765960990288,0.03993,86608.0,86607.0,3.35e-06]
[1765960990614,0.04093,86608.0,86607.0,3.35e-06]
[1765960998038,0.001,86608.0,86607.0,3.35e-06]
[1765960999017,0.24246877,86610.0,86607.0,3.35e-06]
[1765960999154,0.23092546,86609.0,86607.0,3.35e-06]
[1765960999665,0.23092468,86609.0,86607.0,3.35e-06]
[1765960999863,0.24246877,86610.0,86607.0,3.35e-06]
[1765961000796,0.01154601,86610.0,86607.0,3.35e-06]
[1765961001221,0.24246395,86611.0,86607.0,0.01154976]
[1765961002247,0.26604395,86611.0,86607.0,0.01154976]
[1765961002431,0.01154601,86610.0,86607.0,0.01154976]
[1765961003380,0.26620288,86609.0,86607.0,3.35e-06]
[1765961004294,0.03528,86609.0,86607.0,3.35e-06]
[1765961004690,0.0117,86609.0,86607.0,3.35e-06]
[1765961005065,0.03528,86609.0,86607.0,3.35e-06]
[1765961005301,0.01154561,86613.0,86608.0,0.24247181]
[1765961005607,0.01154547,86614.0,86611.0,0.01154587]
[1765961005925,0.01154494,86618.0,86614.0,0.01154547]
[1765961006124,0.01154521,86616.0,86612.0,0.01875574]
[1765961006285,0.25415387,86615.0,86610.0,0.01154601]
[1765961006607,0.01154547,86614.0,86610.0,0.01154601]
[1765961007037,0.01154561,86613.0,86610.0,0.01154601]
[1765961007246,0.01154547,86614.0,86610.0,0.01154601]
[1765961007247,0.01154547,86614.0,86610.0,0.24246458]
[1765961007460,0.24246224,86612.0,86608.0,0.01738627]
[1765961007663,0.24262288,86609.0,86607.0,3.35e-06]
[1765961007836,0.26620288,86609.0,86607.0,3.35e-06]
[1765961008002,0.24262288,86609.0,86607.0,3.35e-06]
[1765961008422,0.06084131,86609.0,86607.0,0.00161622]
[1765961008847,0.24246821,86610.0,86607.0,0.00161622]
[1765961009044,0.01154601,86610.0,86607.0,0.01316263]
[1765961009261,0.03512574,86612.0,86608.0,0.24247008]
[1765961009442,0.03512574,86612.0,86608.0,0.24347008]
[1765961009855,0.03512574,86612.0,86608.0,0.24247008]
[1765961010762,0.03512574,86612.0,86609.0,0.01154614]
[1765961011547,0.02358,86612.0,86609.0,0.24246639]
[1765961011750,0.24245608,86614.0,86609.0,0.24246639]
[1765961011751,0.01154547,86614.0,86609.0,0.24246639]
[1765961012066,0.24245671,86614.0,86609.0,0.24246639]
[1765961012280,0.01154547,86614.0,86610.0,0.24246421]
[1765961012476,0.01154561,86613.0,86610.0,0.01154601]
[1765961013193,0.24245703,86614.0,86610.0,0.01154601]
[1765961013194,0.02358,86614.0,86611.0,0.01154587]
[1765961013334,0.03512547,86614.0,86607.0,0.00161622]
[1765961013543,0.25449482,86613.0,86610.0,0.001]
[1765961014095,0.02358,86612.0,86608.0,0.01154627]
[1765961014307,0.05147574,86612.0,86611.0,0.001]
[1765961015522,0.05147574,86612.0,86609.0,0.01154614]
[1765961015967,0.28239239,86612.0,86610.0,0.001]
[1765961016326,0.01154601,86610.0,86607.0,0.00161622]
[1765961016648,0.23092482,86609.0,86607.0,0.00161622]
[1765961017029,0.23092481,86609.0,86607.0,0.00161622]
[1765961017469,0.01154574,86612.0,86609.0,0.00558]
[1765961017669,0.01154534,86615.0,86611.0,0.23091523]
[1765961018001,0.24245984,86613.0,86609.0,0.01712614]
[1765961018133,0.01154587,86611.0,86608.0,0.01154627]
[1765961018535,0.02785,86609.0,86608.0,0.01154627]
[1765961018742,0.05227,86609.0,86608.0,0.01154627]
[1765961018945,0.02785,86609.0,86607.0,0.00361622]
[1765961019143,0.02785,86609.0,86607.0,0.23454251]
[1765961019349,0.02785,86609.0,86607.0,0.23354251]
[1765961019550,0.02785,86609.0,86607.0,0.23254251]
[1765961019754,0.02785,86609.0,86608.0,0.001]
[1765961020018,0.02785,86609.0,86607.0,0.23254251]
[1765961020513,0.02785,86609.0,86607.0,0.23354251]
[1765961020717,0.02785,86609.0,86607.0,0.23254251]
[1765961020863,0.02785,86609.0,86607.0,0.00261622]
[1765961021269,0.02442,86608.0,86607.0,0.00261622]
[1765961021706,0.24329553,86609.0,86607.0,0.00261622]
[1765961021908,0.01237,86609.0,86608.0,0.001]
[1765961022128,1.387435,86609.0,86608.0,0.001]
[1765961022339,2.19241154,86608.0,86607.0,3.35e-06]
[1765961022552,2.06810954,86608.0,86607.0,3.35e-06]
[1765961022748,1.96485854,86608.0,86607.0,3.35e-06]
[1765961022924,0.01237,86593.0,86590.0,0.24252002]
[1765961023127,0.01237,86593.0,86590.0,0.24260279]
[1765961023901,0.01237,86593.0,86591.0,0.23096908]
[1765961024093,0.26692381,86597.0,86593.0,0.01154827]
[1765961024656,0.24250542,86596.0,86593.0,0.01154827]
[1765961024860,0.01154801,86595.0,86592.0,0.23096582]
[1765961025083,0.2425101,86595.0,86591.0,0.24251755]
[1765961025288,0.23095028,86599.0,86593.0,0.01508827]
[1765961025464,0.01154787,86596.0,86593.0,0.02662]
[1765961025981,0.01154787,86596.0,86593.0,0.01508827]
[1765961026182,0.01154787,86596.0,86593.0,0.01154827]
[1765961027109,0.01154761,86598.0,86594.0,0.01154814]
[1765961027568,0.2425015,86598.0,86594.0,0.01154814]
[1765961028367,0.25485799,86603.0,86597.0,0.01154774]
[1765961028533,0.24249097,86602.0,86598.0,0.01154761]
[1765961028739,0.24250197,86598.0,86594.0,0.23257402]
[1765961029115,0.24250197,86598.0,86594.0,0.00161287]
[1765961029549,0.2425045,86597.0,86594.0,0.00161287]
[1765961029703,0.01154774,86597.0,86594.0,0.01316101]
[1765961030129,0.01154774,86597.0,86594.0,0.00161287]
[1765961030330,0.01154774,86597.0,86594.0,0.00261287]
[1765961030748,0.24250442,86597.0,86594.0,0.00261287]
[1765961030956,0.23096008,86596.0,86594.0,0.00261287]
[1765961031646,0.23096008,86596.0,86594.0,0.00161287]
[1765961032055,0.23096008,86596.0,86594.0,0.00261287]
[1765961032445,0.23096008,86596.0,86594.0,0.00161287]
[1765961032801,0.23096008,86596.0,86594.0,0.00261287]
[1765961035499,0.24250513,86597.0,86594.0,0.00261287]
[1765961035696,0.23095935,86596.0,86594.0,0.00261287]
[1765961036496,0.23095935,86596.0,86594.0,0.00161287]
[1765961037530,0.24250513,86597.0,86594.0,0.00161287]
[1765961037732,0.24250513,86597.0,86594.0,0.00261287]
[1765961037951,0.24250361,86597.0,86594.0,0.01416101]
[1765961038450,0.23095906,86596.0,86594.0,0.00161287]
[1765961038660,0.23095906,86596.0,86594.0,0.00261287]
[1765961039021,0.23095916,86596.0,86594.0,0.00161287]
[1765961039456,0.23095916,86596.0,86594.0,0.00261287]
[1765961040859,0.23095916,86596.0,86594.0,0.00161287]
[1765961041366,0.23095916,86596.0,86594.0,0.00261287]
[1765961042575,0.0399,86595.0,86594.0,0.00261287]
[1765961043494,0.01548,86595.0,86594.0,0.00261287]
[1765961043863,0.01548,86595.0,86594.0,0.00161287]
[1765961044193,0.01548,86595.0,86594.0,0.00261287]
[1765961046648,0.23095916,86596.0,86594.0,0.00261287]
[1765961046959,0.23095755,86596.0,86594.0,0.00261287]
[1765961047458,0.23095755,86596.0,86594.0,0.00161287]
[1765961047641,0.02409,86598.0,86595.0,0.01154801]
[1765961047819,0.24249723,86599.0,86595.0,0.01154801]
[1765961048447,0.26658723,86599.0,86595.0,0.01154801]
[1765961048621,0.01154761,86598.0,86594.0,0.01316101]
[1765961048848,0.01154774,86597.0,86595.0,0.001]
[1765961049288,0.26658723,86599.0,86595.0,0.01254801]
[1765961049461,0.01154761,86598.0,86595.0,0.01254801]
[1765961049861,0.01154761,86598.0,86595.0,0.001]
[1765961050066,0.01154774,86597.0,86594.0,0.00161287]
[1765961050465,0.01154774,86597.0,86595.0,0.001]
[1765961050984,0.23096001,86596.0,86594.0,0.00161287]
[1765961051324,0.2425048,86597.0,86594.0,0.00261287]
[1765961051733,0.01154761,86598.0,86594.0,0.00261287]
[1765961051935,0.24250141,86598.0,86594.0,0.01416101]
[1765961052149,0.01154774,86597.0,86594.0,0.00161287]
[1765961052532,0.24250466,86597.0,86594.0,0.00161287]
[1765961052732,0.01154774,86597.0,86594.0,0.00161287]
[1765961052929,0.23095926,86596.0,86594.0,0.00161287]
[1765961053364,0.01154721,86601.0,86594.0,0.00161287]
[1765961053566,0.24249748,86599.0,86596.0,0.01154787]
[1765961053766,0.23095708,86597.0,86595.0,0.001]
[1765961053967,0.23096021,86595.0,86594.0,0.00161287]
[1765961054267,0.25505021,86595.0,86594.0,0.00161287]
[1765961054598,0.25505021,86595.0,86594.0,0.00261287]
[1765961054761,0.02409,86595.0,86594.0,0.00261287]
[1765961054986,0.02409,86595.0,86594.0,0.00161287]
[1765961055618,0.03949,86595.0,86594.0,0.00161287]
[1765961058314,0.26732088,86591.0,86590.0,8.277e-05]
[1765961058512,0.01226,86591.0,86590.0,8.277e-05]
[1765961058912,0.02766,86591.0,86590.0,8.277e-05]
[1765961059153,0.05175,86591.0,86590.0,8.277e-05]
[1765961059357,0.02766,86591.0,86590.0,8.277e-05]
[1765961059565,0.01226,86591.0,86590.0,8.277e-05]
[1765961059945,0.01226,86591.0,86590.0,0.00108277]
[1765961060645,0.01226,86597.0,86592.0,0.01154841]
[1765961060860,0.01226,86597.0,86594.0,0.23096091]
[1765961061011,0.01226,86597.0,86595.0,0.23095847]
[1765961061376,0.01154707,86602.0,86597.0,0.24250219]
[1765961061594,0.01154734,86600.0,86595.0,0.01154801]
[1765961061818,0.01154761,86598.0,86595.0,0.01154801]
[1765961062019,0.01154774,86597.0,86594.0,0.01154814]
[1765961062402,0.02380747,86599.0,86595.0,0.01154801]
[1765961062930,0.01154734,86600.0,86596.0,0.01154787]
[1765961063271,0.24249432,86600.0,86596.0,0.01154787]
[1765961063469,0.01154734,86600.0,86593.0,0.01154827]
[1765961063675,0.24250426,86597.0,86592.0,0.01154841]
[1765961063877,0.03563801,86595.0,86592.0,0.01154841]
[1765961064435,0.01154801,86595.0,86592.0,0.01154841]
[1765961065227,0.01154801,86595.0,86591.0,0.01154854]
[1765961065591,0.01154801,86595.0,86590.0,0.00169564]
[1765961065592,0.01154827,86593.0,86590.0,0.00169564]
[1765961065781,0.03949,86591.0,86590.0,0.00169564]
[1765961066532,0.0154,86591.0,86590.0,0.00169564]
[1765961067987,0.03949,86591.0,86590.0,0.00269564]
[1765961068189,0.0154,86591.0,86590.0,0.00269564]
[1765961068386,0.01154787,86596.0,86592.0,0.01154841]
[1765961068588,0.03470741,86598.0,86596.0,0.23095755]
[1765961071791,0.03470741,86598.0,86595.0,0.24250649]
[1765961072279,0.03470741,86598.0,86595.0,0.01154801]
[1765961072482,0.03470741,86598.0,86595.0,0.24250655]
[1765961072730,0.03470741,86598.0,86596.0,0.23095536]
[1765961073770,0.03470741,86598.0,86595.0,0.24250655]
[1765961073952,0.04625502,86598.0,86595.0,0.01154801]
[1765961074123,0.27720878,86598.0,86595.0,0.01154801]
[1765961074310,0.24250137,86598.0,86595.0,0.01154801]
[1765961074513,0.01154761,86598.0,86595.0,0.01154801]
[1765961074811,0.03470741,86597.0,86595.0,0.01154801]
[1765961075012,0.03470741,86597.0,86596.0,0.23095755]
[1765961075653,0.03470741,86597.0,86595.0,0.01154801]
[1765961076205,0.03470741,86597.0,86595.0,0.24250611]
[1765961076778,0.01154694,86603.0,86599.0,0.01154747]
[1765961076958,0.03470625,86601.0,86599.0,0.01154747]
[1765961077160,0.03470625,86601.0,86599.0,0.2424954]
[1765961077753,0.05927625,86601.0,86599.0,0.01154747]
[1765961077958,0.03470625,86601.0,86599.0,0.01154747]
[1765961078338,0.2424893,86602.0,86600.0,0.01154734]
[1765961078339,0.03470625,86602.0,86600.0,0.01154734]
[1765961079532,0.03470625,86602.0,86601.0,0.23094421]
[1765961079711,0.23093556,86605.0,86601.0,0.24249142]
[1765961079932,0.23093556,86605.0,86601.0,0.01154721]
[1765961080364,0.01154694,86603.0,86600.0,0.00161287]
[1765961080939,0.01154694,86603.0,86600.0,0.01316021]
[1765961081301,0.24248454,86604.0,86600.0,0.01316021]
[1765961081302,0.01154681,86604.0,86600.0,0.01316021]
[1765961081443,0.01154667,86605.0,86601.0,0.01154721]
[1765961081807,0.01205,86616.0,86613.0,0.01154561]
[1765961081947,0.02359521,86616.0,86612.0,0.01154574]
[1765961082488,0.01154521,86616.0,86612.0,0.01154574]
[1765961082702,0.24245222,86615.0,86611.0,0.02303587]
[1765961083047,0.01797507,86617.0,86613.0,0.23091039]
[1765961083260,0.30224521,86616.0,86612.0,0.24246062]
[1765961083463,0.30324521,86616.0,86612.0,0.24246062]
[1765961083661,0.30224521,86616.0,86612.0,0.24246062]
[1765961083910,0.2907,86616.0,86613.0,0.01154561]
[1765961084635,0.30224521,86616.0,86613.0,0.01154561]
[1765961084775,0.53315198,86616.0,86611.0,0.25395218]
[1765961085110,0.00643,86617.0,86614.0,0.23090759]
[1765961085320,0.01154481,86619.0,86615.0,0.01154534]
[1765961085544,0.01154494,86618.0,86615.0,0.01154534]
[1765961085899,0.24244382,86618.0,86615.0,0.01154534]
[1765961086219,0.0117986,86621.0,86617.0,0.24244662]
[1765961086377,0.00025406,86621.0,86618.0,0.24244162]
[1765961086577,0.00025406,86621.0,86619.0,0.230894]
[1765961086792,0.00025406,86621.0,86619.0,0.02385]
[1765961087015,0.00025406,86621.0,86618.0,0.01154494]
[1765961087412,0.00125406,86621.0,86618.0,0.01154494]
[1765961087817,0.00125406,86621.0,86619.0,0.23089439]
[1765961088578,0.00025406,86621.0,86619.0,0.23089439]
[1765961088823,0.00125406,86621.0,86618.0,0.24244307]
[1765961089198,0.00025406,86621.0,86620.0,0.23089355]
[1765961089392,0.00125406,86621.0,86620.0,0.23089355]
[1765961089634,0.00125406,86621.0,86619.0,0.23089397]
[1765961089835,0.00025406,86621.0,86618.0,0.24244307]
[1765961089984,0.00125406,86621.0,86618.0,0.24244307]
[1765961090364,0.00025406,86621.0,86618.0,0.24244307]
[1765961090591,0.00643,86614.0,86610.0,0.01154601]
[1765961090980,0.00643,86614.0,86610.0,0.24246385]
[1765961091588,0.00643,86614.0,86611.0,0.24246136]
[1765961092006,0.00643,86614.0,86612.0,0.23091227]
[1765961092200,0.01154467,86620.0,86616.0,0.01154521]
[1765961092399,0.01154481,86619.0,86616.0,0.01154521]
[1765961092744,0.01154494,86618.0,86613.0,0.24245776]
[1765961092955,0.01154494,86618.0,86615.0,0.24245222]
[1765961093115,0.01154481,86619.0,86616.0,0.01154521]
[1765961093726,0.01154494,86618.0,86615.0,0.01154534]
[1765961094293,0.24244662,86617.0,86614.0,0.01154547]
[1765961094489,0.01154507,86617.0,86614.0,0.01154547]
[1765961094689,0.01154481,86619.0,86615.0,0.01154534]
[1765961094950,0.01154481,86619.0,86615.0,0.24245011]
[1765961095553,0.00660406,86621.0,86617.0,0.01154507]
[1765961096644,0.00660406,86621.0,86618.0,0.01154494]
[1765961096769,0.00760406,86621.0,86618.0,0.01154494]
[1765961097126,0.0191486,86621.0,86618.0,0.01154494]
[1765961097542,0.01154467,86620.0,86616.0,0.01154521]
[1765961097739,0.01154467,86620.0,86616.0,0.24244902]
[1765961098737,0.24904179,86621.0,86617.0,0.24244467]
[1765961099341,0.00660406,86621.0,86618.0,0.01154494]
[1765961099614,0.00660406,86621.0,86618.0,0.24244192]
[1765961099974,0.00760406,86621.0,86618.0,0.24244192]
[1765961100976,0.00760406,86621.0,86619.0,0.23089418]
[1765961101329,0.00660406,86621.0,86619.0,0.23089418]
[1765961101549,0.00760406,86621.0,86619.0,0.23089418]
[1765961101958,0.00660406,86621.0,86619.0,0.23089434]
[1765961102105,0.00760406,86621.0,86619.0,0.23089434]
[1765961102967,0.00760406,86621.0,86618.0,0.01154494]
[1765961103172,0.00643,86613.0,86612.0,0.01154574]
[1765961103377,0.23093826,86604.0,86601.0,0.00161287]
[1765961103581,0.23094139,86603.0,86601.0,0.00161287]
[1765961103749,0.00619,86604.0,86601.0,0.00161287]
[1765961104160,0.23093888,86603.0,86601.0,0.00161287]
[1765961104733,0.03788,86602.0,86601.0,0.00161287]
[1765961105254,0.03788,86602.0,86601.0,0.00261287]
[1765961105478,0.03788,86602.0,86601.0,0.00161287]
[1765961105829,0.03788,86602.0,86601.0,0.00261287]
[1765961107411,0.03788,86602.0,86601.0,0.00361287]
[1765961108016,0.00619,86604.0,86601.0,0.00361287]
[1765961108429,0.01773681,86604.0,86601.0,0.00361287]
[1765961108915,0.01773681,86604.0,86601.0,0.00261287]
[1765961109118,0.23094067,86603.0,86601.0,0.00261287]
[1765961109428,0.01773681,86604.0,86601.0,0.00261287]
[1765961109429,0.24867514,86604.0,86601.0,0.00261287]
[1765961110079,0.24867514,86604.0,86601.0,0.00161287]
[1765961110286,0.23093888,86603.0,86601.0,0.00261287]
[1765961110492,0.23093888,86603.0,86601.0,0.00361287]
[1765961110890,0.2486752,86604.0,86601.0,0.00361287]
[1765961111382,0.2486752,86604.0,86601.0,0.00261287]
[1765961111583,0.01773681,86604.0,86601.0,0.24610376]
[1765961111822,0.01773681,86604.0,86601.0,0.01416008]
[1765961112248,0.00619,86604.0,86602.0,0.23093924]
[1765961113889,0.00619,86604.0,86602.0,0.23193924]
[1765961114612,0.00619,86604.0,86602.0,0.001]
[1765961115001,0.00619,86604.0,86602.0,0.002]
[1765961115511,0.2371287,86604.0,86602.0,0.002]
[1765961116298,0.03788,86603.0,86602.0,0.002]
[1765961117119,0.03788,86603.0,86602.0,0.001]
[1765961117519,0.03788,86603.0,86602.0,0.002]
[1765961117718,0.03788,86603.0,86602.0,0.001]
[1765961118165,0.03888,86603.0,86602.0,0.001]
[1765961118537,0.01773774,86597.0,86594.0,0.01154814]
[1765961118734,0.01154801,86595.0,86592.0,0.01154841]
[1765961118938,0.01773774,86597.0,86594.0,0.24251102]
[1765961119146,0.00619,86597.0,86594.0,0.24251102]
[1765961119875,0.24869453,86597.0,86593.0,0.01154827]
[1765961120123,0.00619,86597.0,86596.0,0.23095755]
[1765961120341,0.24248706,86603.0,86598.0,0.02465]
[1765961120342,0.01154707,86602.0,86598.0,0.02465]
[1765961120550,0.01154694,86603.0,86599.0,0.01154747]
[1765961120757,0.24248742,86603.0,86599.0,0.01154747]
[1765961121179,0.01154707,86602.0,86599.0,0.01154747]
[1765961121353,0.24249077,86602.0,86598.0,0.01154761]
[1765961121549,0.01154721,86601.0,86598.0,0.01154761]
[1765961123151,0.01154707,86602.0,86599.0,0.01154747]
[1765961123353,0.01154734,86600.0,86596.0,0.01316074]
[1765961123576,0.24249658,86600.0,86596.0,0.01316074]
[1765961123787,0.01154734,86600.0,86597.0,0.01154774]
[1765961124319,0.24249342,86601.0,86598.0,0.01154761]
[1765961124438,0.24133966,86601.0,86597.0,0.01154774]
[1765961125500,0.01154734,86600.0,86597.0,0.01154774]
[1765961126304,0.24249571,86600.0,86597.0,0.01154774]
[1765961126483,0.01154747,86599.0,86596.0,0.2441157]
[1765961127537,0.03788,86597.0,86596.0,0.00161287]
[1765961128035,0.01529,86597.0,86596.0,0.00161287]
[1765961128762,0.01529,86597.0,86596.0,0.00261287]
[1765961129544,0.23095221,86598.0,86596.0,0.00261287]
[1765961129754,0.01773747,86599.0,86596.0,0.00261287]
[1765961129956,0.01773747,86599.0,86596.0,0.01416074]
[1765961130217,0.01773747,86599.0,86596.0,0.00261287]
[1765961130434,0.23095488,86597.0,86596.0,0.00261287]
[1765961130975,0.23095488,86597.0,86596.0,0.00161287]
[1765961131179,0.23095488,86597.0,86596.0,0.00261287]
[1765961131499,0.230954,86598.0,86596.0,0.00261287]
[1765961131702,0.230954,86598.0,86596.0,0.00161287]
[1765961132122,0.230954,86598.0,86596.0,0.00261287]
[1765961132540,0.230954,86598.0,86596.0,0.00161287]
[1765961132903,0.230954,86598.0,86596.0,0.00261287]
[1765961134009,0.253544,86598.0,86596.0,0.00261287]
[1765961134189,0.01529,86597.0,86596.0,0.00261287]
[1765961134400,0.01529,86597.0,86596.0,0.001]
[1765961134401,0.03923,86597.0,86596.0,0.001]
[1765961134714,0.05751,86597.0,86596.0,0.001]
[1765961134881,0.05751,86597.0,86588.0,0.01154894]
[1765961134882,0.01154854,86591.0,86588.0,0.01154894]
[1765961135081,0.00643,86592.0,86589.0,0.01154881]
[1765961136515,0.00643,86592.0,86589.0,0.24252289]